[Event "Late-Titled-Tuesday-Blitz-April-30-2024"]
[Site "Chess.com"]
[Date "2024.04.30"]
[Round "2"]
[White "Carlitus2004"]
[Black "MyDream003"]
[Result "1/2-1/2"]
[WhiteElo "2490"]
[BlackElo "2825"]
[TimeControl "180+1"]
[EndTime "14:19:18 PDT"]
[Termination "Game drawn by repetition"]

1. e4 {[%clk 0:03:00.9]} 1... c6 {[%clk 0:02:57.5]} 2. d4 {[%clk 0:02:53.6]}
2... d5 {[%clk 0:02:57.6]} 3. exd5 {[%clk 0:02:53.7]} 3... cxd5 {[%clk
0:02:57.7]} 4. Nf3 {[%clk 0:02:54.4]} 4... Nc6 {[%clk 0:02:57.2]} 5. c3 {[%clk
0:02:51.6]} 5... e6 {[%clk 0:02:54.8]} 6. Bd3 {[%clk 0:02:51.2]} 6... Bd6 {[%clk
0:02:54.9]} 7. O-O {[%clk 0:02:51.6]} 7... Nge7 {[%clk 0:02:54.8]} 8. Qe2 {[%clk
0:02:45.9]} 8... Qc7 {[%clk 0:02:54]} 9. b3 {[%clk 0:02:39.8]} 9... b6 {[%clk
0:02:37.8]} 10. Na3 {[%clk 0:02:32.7]} 10... a6 {[%clk 0:02:36.5]} 11. Bb2
{[%clk 0:02:32.2]} 11... Bb7 {[%clk 0:02:31.4]} 12. c4 {[%clk 0:02:29.7]} 12...
h6 {[%clk 0:01:51.8]} 13. Rac1 {[%clk 0:02:27.8]} 13... O-O {[%clk 0:01:50.6]}
14. c5 {[%clk 0:02:25]} 14... Bf4 {[%clk 0:01:44.9]} 15. cxb6 {[%clk 0:01:55.3]}
15... Qxb6 {[%clk 0:01:45.8]} 16. Rc5 {[%clk 0:01:54.9]} 16... Rac8 {[%clk
0:01:26.7]} 17. g3 {[%clk 0:01:08.7]} 17... Bd6 {[%clk 0:01:20.8]} 18. Rcc1
{[%clk 0:01:08]} 18... Nf5 {[%clk 0:00:41.7]} 19. Nc2 {[%clk 0:00:57.2]} 19...
Rfe8 {[%clk 0:00:40.8]} 20. Rfe1 {[%clk 0:00:39]} 20... Re7 {[%clk 0:00:37.7]}
21. g4 {[%clk 0:00:30.3]} 21... Bf4 {[%clk 0:00:29.9]} 22. gxf5 {[%clk 0:00:30]}
22... exf5 {[%clk 0:00:30.8]} 23. Qf1 {[%clk 0:00:20.4]} 23... Re4 {[%clk
0:00:25.5]} 24. Bxe4 {[%clk 0:00:17]} 24... fxe4 {[%clk 0:00:26.3]} 25. Ne5
{[%clk 0:00:17.7]} 25... Nxe5 {[%clk 0:00:25.1]} 26. dxe5 {[%clk 0:00:17.8]}
26... Qg6+ {[%clk 0:00:19.8]} 27. Qg2 {[%clk 0:00:16.2]} 27... Qh5 {[%clk
0:00:20]} 28. Ne3 {[%clk 0:00:12.8]} 28... Rd8 {[%clk 0:00:17.6]} 29. Qg4 {[%clk
0:00:11.8]} 29... Qxh2+ {[%clk 0:00:15.1]} 30. Kf1 {[%clk 0:00:12.5]} 30... Bxe5
{[%clk 0:00:11.4]} 31. Bxe5 {[%clk 0:00:12]} 31... Qxe5 {[%clk 0:00:12.3]} 32.
Kg2 {[%clk 0:00:08.7]} 32... d4 {[%clk 0:00:12.3]} 33. Qf5 {[%clk 0:00:08.2]}
33... Qe7 {[%clk 0:00:10.6]} 34. Rcd1 {[%clk 0:00:06.6]} 34... dxe3 {[%clk
0:00:09.4]} 35. Rxd8+ {[%clk 0:00:07.5]} 35... Qxd8 {[%clk 0:00:10.3]} 36. Rxe3
{[%clk 0:00:08.4]} 36... g6 {[%clk 0:00:08.1]} 37. Qf4 {[%clk 0:00:08.4]} 37...
Qf8 {[%clk 0:00:05.7]} 38. Rh3 {[%clk 0:00:07.5]} 38... Kh7 {[%clk 0:00:05.3]}
39. Kg1 {[%clk 0:00:07.9]} 39... Bd5 {[%clk 0:00:05.5]} 40. Rc3 {[%clk
0:00:07.9]} 40... Qg7 {[%clk 0:00:04.9]} 41. Rc7 {[%clk 0:00:07.5]} 41... a5
{[%clk 0:00:05.4]} 42. Kh2 {[%clk 0:00:07.3]} 42... Be6 {[%clk 0:00:04.5]} 43.
Ra7 {[%clk 0:00:06.8]} 43... Qd4 {[%clk 0:00:03.7]} 44. Rxa5 {[%clk 0:00:06.4]}
44... Qd7 {[%clk 0:00:03.8]} 45. Rc5 {[%clk 0:00:05.4]} 45... Qa7 {[%clk
0:00:03.6]} 46. Rc7 {[%clk 0:00:05.1]} 46... Qxa2 {[%clk 0:00:02]} 47. Rxf7+
{[%clk 0:00:03.6]} 47... Bxf7 {[%clk 0:00:02.9]} 48. Qxf7+ {[%clk 0:00:04.5]}
48... Kh8 {[%clk 0:00:03.4]} 49. Qf8+ {[%clk 0:00:05]} 49... Kh7 {[%clk
0:00:04]} 50. Qf7+ {[%clk 0:00:04.4]} 50... Kh8 {[%clk 0:00:04.4]} 51. Qf8+
{[%clk 0:00:04.9]} 51... Kh7 {[%clk 0:00:04.9]} 52. Qf7+ {[%clk 0:00:05.7]}
1/2-1/2

[Event "Late-Titled-Tuesday-Blitz-April-30-2024"]
[Site "Chess.com"]
[Date "2024.04.30"]
[Round "2"]
[White "1g60-1"]
[Black "LuciaMalanRamos"]
[Result "1/2-1/2"]
[WhiteElo "2443"]
[BlackElo "2120"]
[TimeControl "180+1"]
[EndTime "14:19:18 PDT"]
[Termination "Game drawn - insufficient material"]

1. e4 {[%clk 0:03:00.9]} 1... c5 {[%clk 0:02:59.2]} 2. d4 {[%clk 0:03:01]} 2...
cxd4 {[%clk 0:02:59.1]} 3. c3 {[%clk 0:03:01.9]} 3... d3 {[%clk 0:02:59.6]} 4.
Bxd3 {[%clk 0:03:01.9]} 4... Nc6 {[%clk 0:03:00]} 5. Nf3 {[%clk 0:03:02.6]} 5...
Nf6 {[%clk 0:03:00.4]} 6. c4 {[%clk 0:03:01.1]} 6... e6 {[%clk 0:02:54.6]} 7.
Nc3 {[%clk 0:03:01.1]} 7... Bb4 {[%clk 0:02:51.7]} 8. Bd2 {[%clk 0:02:59.2]}
8... O-O {[%clk 0:02:49.7]} 9. O-O {[%clk 0:02:59.5]} 9... d5 {[%clk 0:02:49.9]}
10. e5 {[%clk 0:02:53.5]} 10... Nd7 {[%clk 0:02:42.9]} 11. Bxh7+ {[%clk
0:02:51.8]} 11... Kxh7 {[%clk 0:02:40.7]} 12. Ng5+ {[%clk 0:02:52.2]} 12... Kg6
{[%clk 0:02:37.7]} 13. Qc2+ {[%clk 0:02:40.9]} 13... f5 {[%clk 0:02:35.4]} 14.
exf6+ {[%clk 0:02:41]} 14... Kxf6 {[%clk 0:02:31.3]} 15. Nh7+ {[%clk 0:02:33.3]}
15... Kf7 {[%clk 0:02:29.6]} 16. Nxf8 {[%clk 0:02:31.9]} 16... Kxf8 {[%clk
0:02:29.9]} 17. cxd5 {[%clk 0:02:30.2]} 17... exd5 {[%clk 0:02:23.2]} 18. Nxd5
{[%clk 0:02:27.6]} 18... Bxd2 {[%clk 0:02:22.9]} 19. Qxd2 {[%clk 0:02:28.1]}
19... Nf6 {[%clk 0:02:20.6]} 20. Rad1 {[%clk 0:02:18.8]} 20... Nxd5 {[%clk
0:02:06.4]} 21. Qxd5 {[%clk 0:02:18.3]} 21... Qxd5 {[%clk 0:02:06.3]} 22. Rxd5
{[%clk 0:02:19.2]} 22... Be6 {[%clk 0:02:03.5]} 23. Rb5 {[%clk 0:02:12.6]} 23...
Bc4 {[%clk 0:02:03.4]} 24. Rxb7 {[%clk 0:02:12.2]} 24... Bxf1 {[%clk 0:02:03.6]}
25. Kxf1 {[%clk 0:02:13.1]} 25... Nd4 {[%clk 0:01:54.9]} 26. g3 {[%clk
0:02:01.9]} 26... a5 {[%clk 0:01:52.9]} 27. Kg2 {[%clk 0:01:59.8]} 27... a4
{[%clk 0:01:51.9]} 28. Rb4 {[%clk 0:01:56.8]} 28... Nc6 {[%clk 0:01:49.6]} 29.
Rh4 {[%clk 0:01:56.9]} 29... Kg8 {[%clk 0:01:49]} 30. Rc4 {[%clk 0:01:56]} 30...
Ne5 {[%clk 0:01:48.7]} 31. Rc7 {[%clk 0:01:52.9]} 31... Nd3 {[%clk 0:01:46.2]}
32. Rb7 {[%clk 0:01:51.5]} 32... a3 {[%clk 0:01:41.8]} 33. bxa3 {[%clk
0:01:48.1]} 33... Rxa3 {[%clk 0:01:42.7]} 34. Rb3 {[%clk 0:01:32.9]} 34... Rxb3
{[%clk 0:01:42.3]} 35. axb3 {[%clk 0:01:33.8]} 35... Kf7 {[%clk 0:01:38.4]} 36.
Kf3 {[%clk 0:01:34.1]} 36... Ke6 {[%clk 0:01:36.8]} 37. Ke3 {[%clk 0:01:32.9]}
37... Nb4 {[%clk 0:01:29.4]} 38. Kd4 {[%clk 0:01:24.3]} 38... Kd6 {[%clk
0:01:25.7]} 39. h4 {[%clk 0:01:19.9]} 39... Nc2+ {[%clk 0:01:24.3]} 40. Ke4
{[%clk 0:01:14.1]} 40... Nb4 {[%clk 0:01:23.5]} 41. Kf5 {[%clk 0:01:11.1]} 41...
Ke7 {[%clk 0:01:18.4]} 42. Kg6 {[%clk 0:01:09.7]} 42... Kf8 {[%clk 0:01:18.3]}
43. f4 {[%clk 0:01:04.8]} 43... Nc6 {[%clk 0:01:13.4]} 44. h5 {[%clk 0:00:59.8]}
44... Nd4 {[%clk 0:01:09.9]} 45. b4 {[%clk 0:00:56.6]} 45... Kg8 {[%clk
0:00:59.9]} 46. g4 {[%clk 0:00:37.5]} 46... Kf8 {[%clk 0:00:57.7]} 47. g5 {[%clk
0:00:35]} 47... Ne6 {[%clk 0:00:47.5]} 48. Kf5 {[%clk 0:00:21.4]} 48... Kf7
{[%clk 0:00:41.1]} 49. h6 {[%clk 0:00:17.3]} 49... gxh6 {[%clk 0:00:31.4]} 50.
gxh6 {[%clk 0:00:18.2]} 50... Nd4+ {[%clk 0:00:30.4]} 51. Ke4 {[%clk 0:00:16.1]}
51... Nb5 {[%clk 0:00:29.5]} 52. Kd5 {[%clk 0:00:13.9]} 52... Kg6 {[%clk
0:00:27.1]} 53. Kc5 {[%clk 0:00:12.8]} 53... Na3 {[%clk 0:00:20.4]} 54. f5+
{[%clk 0:00:09.9]} 54... Kxh6 {[%clk 0:00:19.1]} 55. Kd6 {[%clk 0:00:09.5]}
55... Kg5 {[%clk 0:00:09.3]} 56. Ke6 {[%clk 0:00:09.1]} 56... Nb5 {[%clk
0:00:07.5]} 57. f6 {[%clk 0:00:09]} 57... Nd4+ {[%clk 0:00:07.1]} 58. Ke7 {[%clk
0:00:09.3]} 58... Nc6+ {[%clk 0:00:05.8]} 59. Ke8 {[%clk 0:00:09.6]} 59... Kxf6
{[%clk 0:00:05.7]} 60. b5 {[%clk 0:00:09.2]} 60... Na5 {[%clk 0:00:06.1]} 61.
Kd8 {[%clk 0:00:08.3]} 61... Ke6 {[%clk 0:00:06.7]} 62. Kc7 {[%clk 0:00:08.7]}
62... Kd5 {[%clk 0:00:06.8]} 63. Kb6 {[%clk 0:00:09.2]} 63... Nc4+ {[%clk
0:00:07.1]} 64. Ka6 {[%clk 0:00:09.4]} 64... Kc5 {[%clk 0:00:08]} 65. b6 {[%clk
0:00:09.9]} 65... Nxb6 {[%clk 0:00:08.4]} 1/2-1/2

[Event "Late-Titled-Tuesday-Blitz-April-30-2024"]
[Site "Chess.com"]
[Date "2024.04.30"]
[Round "2"]
[White "nabukatnezarr"]
[Black "Indefatigable11"]
[Result "1-0"]
[WhiteElo "2599"]
[BlackElo "2369"]
[TimeControl "180+1"]
[EndTime "14:19:21 PDT"]
[Termination "nabukatnezarr won by resignation"]

1. e4 {[%clk 0:03:00.9]} 1... c5 {[%clk 0:02:58.8]} 2. Nc3 {[%clk 0:02:59.6]}
2... g6 {[%clk 0:02:55.7]} 3. Bc4 {[%clk 0:02:59]} 3... Bg7 {[%clk 0:02:53.2]}
4. a3 {[%clk 0:02:59.6]} 4... d6 {[%clk 0:02:52.3]} 5. d3 {[%clk 0:03:00.2]}
5... Nc6 {[%clk 0:02:52.3]} 6. Ba2 {[%clk 0:03:00]} 6... Nf6 {[%clk 0:02:52.3]}
7. Nge2 {[%clk 0:02:57.6]} 7... O-O {[%clk 0:02:51.9]} 8. O-O {[%clk 0:02:57]}
8... Nd7 {[%clk 0:02:51.6]} 9. f4 {[%clk 0:02:56.4]} 9... a6 {[%clk 0:02:51.3]}
10. f5 {[%clk 0:02:56.1]} 10... b5 {[%clk 0:02:50.9]} 11. Nf4 {[%clk 0:02:53.9]}
11... Nde5 {[%clk 0:02:48.2]} 12. fxg6 {[%clk 0:02:45.9]} 12... hxg6 {[%clk
0:02:47.3]} 13. Ncd5 {[%clk 0:02:46.2]} 13... e6 {[%clk 0:02:38.7]} 14. Ne3
{[%clk 0:02:44.6]} 14... Bb7 {[%clk 0:02:38.3]} 15. c3 {[%clk 0:02:41.9]} 15...
Qe7 {[%clk 0:02:26.1]} 16. d4 {[%clk 0:02:28.1]} 16... cxd4 {[%clk 0:02:24.7]}
17. cxd4 {[%clk 0:02:29]} 17... Nxd4 {[%clk 0:02:23.5]} 18. Kh1 {[%clk
0:02:27.3]} 18... Ndc6 {[%clk 0:02:22.7]} 19. Bd2 {[%clk 0:02:24.9]} 19... Rac8
{[%clk 0:02:20.7]} 20. Bc3 {[%clk 0:02:25]} 20... Rfd8 {[%clk 0:02:19.8]} 21.
Qe2 {[%clk 0:02:23.3]} 21... Qg5 {[%clk 0:01:43.9]} 22. Bxe6 {[%clk 0:02:03.7]}
22... fxe6 {[%clk 0:01:43.1]} 23. Nxe6 {[%clk 0:02:04.6]} 23... Qh4 {[%clk
0:01:38.2]} 24. Nxd8 {[%clk 0:01:36.9]} 24... Nxd8 {[%clk 0:01:33]} 25. Nd5
{[%clk 0:01:35.4]} 25... Ne6 {[%clk 0:01:16.1]} 26. g3 {[%clk 0:01:23.8]} 26...
Qd8 {[%clk 0:00:47.5]} 27. Rad1 {[%clk 0:01:16.6]} 27... Nc5 {[%clk 0:00:41.8]}
28. Kg1 {[%clk 0:01:07.1]} 28... Qg5 {[%clk 0:00:31.2]} 29. Bd2 {[%clk 0:01:00]}
29... Qd8 {[%clk 0:00:30.8]} 30. Bf4 {[%clk 0:00:55.2]} 30... Ne6 {[%clk
0:00:26.6]} 31. Rd2 {[%clk 0:00:45.2]} 31... Nc4 {[%clk 0:00:20.5]} 32. Rdd1
{[%clk 0:00:28.8]} 32... Bxd5 {[%clk 0:00:16.2]} 33. exd5 {[%clk 0:00:25.4]}
33... Nd4 {[%clk 0:00:16.4]} 34. Qg4 {[%clk 0:00:22.9]} 34... Qe8 {[%clk
0:00:03.4]} 35. Rde1 {[%clk 0:00:21.7]} 35... Ne5 {[%clk 0:00:02.5]} 36. Bxe5
{[%clk 0:00:15]} 36... Bxe5 {[%clk 0:00:02.5]} 37. Re4 {[%clk 0:00:14.1]} 37...
Rc2 {[%clk 0:00:01.8]} 38. Rxd4 {[%clk 0:00:10.6]} 38... Bxd4+ {[%clk
0:00:01.7]} 39. Qxd4 {[%clk 0:00:11.5]} 39... Qe2 {[%clk 0:00:01.4]} 40. Qf2
{[%clk 0:00:07.3]} 40... Qxf2+ {[%clk 0:00:01]} 41. Rxf2 {[%clk 0:00:08.2]}
41... Rc1+ {[%clk 0:00:01.3]} 42. Kg2 {[%clk 0:00:08.9]} 42... Rc5 {[%clk
0:00:01.5]} 43. Rd2 {[%clk 0:00:09]} 43... Kf7 {[%clk 0:00:01.6]} 44. Kf3 {[%clk
0:00:09.7]} 44... Kf6 {[%clk 0:00:02.2]} 45. Ke4 {[%clk 0:00:10.5]} 45... Rc4+
{[%clk 0:00:02.7]} 46. Kd3 {[%clk 0:00:11]} 46... Ke5 {[%clk 0:00:03.2]} 47. b3
{[%clk 0:00:10.8]} 47... Rd4+ {[%clk 0:00:02.9]} 48. Ke2 {[%clk 0:00:08.8]}
48... Rxd2+ {[%clk 0:00:02.9]} 49. Kxd2 {[%clk 0:00:09.7]} 49... Kxd5 {[%clk
0:00:03.4]} 50. Kd3 {[%clk 0:00:10]} 50... Ke5 {[%clk 0:00:04]} 51. h3 {[%clk
0:00:09.6]} 51... d5 {[%clk 0:00:04.3]} 52. Ke3 {[%clk 0:00:10.2]} 52... Kf5
{[%clk 0:00:03.8]} 53. Kd4 {[%clk 0:00:10]} 53... Ke6 {[%clk 0:00:04.5]} 54. g4
{[%clk 0:00:10.4]} 54... Kd6 {[%clk 0:00:04.4]} 55. h4 {[%clk 0:00:10.5]} 55...
Ke6 {[%clk 0:00:04.8]} 56. h5 {[%clk 0:00:11.1]} 56... gxh5 {[%clk 0:00:05]} 57.
gxh5 {[%clk 0:00:12]} 57... Kf5 {[%clk 0:00:05.6]} 58. h6 {[%clk 0:00:12.4]}
58... Kg5 {[%clk 0:00:06.2]} 59. h7 {[%clk 0:00:13.3]} 59... Kg6 {[%clk
0:00:06.3]} 60. Kxd5 {[%clk 0:00:14.2]} 60... Kxh7 {[%clk 0:00:06.4]} 61. Kc6
{[%clk 0:00:15]} 61... Kg6 {[%clk 0:00:07]} 62. Kb6 {[%clk 0:00:15.7]} 62... Kf5
{[%clk 0:00:07.2]} 63. Kxa6 {[%clk 0:00:16]} 63... b4 {[%clk 0:00:07.9]} 64.
axb4 {[%clk 0:00:16.9]} 64... Ke6 {[%clk 0:00:06.8]} 65. b5 {[%clk 0:00:17.8]}
65... Kd7 {[%clk 0:00:07.3]} 66. b6 {[%clk 0:00:18.7]} 66... Kc8 {[%clk
0:00:07.9]} 67. Ka7 {[%clk 0:00:19.1]} 67... Kd7 {[%clk 0:00:08.1]} 68. b7
{[%clk 0:00:20]} 68... Kc6 {[%clk 0:00:07.6]} 69. b8=Q {[%clk 0:00:20.1]} 1-0

[Event "Late-Titled-Tuesday-Blitz-April-30-2024"]
[Site "Chess.com"]
[Date "2024.04.30"]
[Round "2"]
[White "IMRosen"]
[Black "Kombinator01"]
[Result "1-0"]
[WhiteElo "2691"]
[BlackElo "2389"]
[TimeControl "180+1"]
[EndTime "14:19:24 PDT"]
[Termination "IMRosen won by checkmate"]

1. c4 {[%clk 0:03:00.9]} 1... e6 {[%clk 0:02:59.1]} 2. Nc3 {[%clk 0:03:00.9]}
2... d5 {[%clk 0:02:59]} 3. d4 {[%clk 0:03:01.5]} 3... a6 {[%clk 0:02:57.8]} 4.
cxd5 {[%clk 0:02:59.8]} 4... exd5 {[%clk 0:02:57.6]} 5. Nf3 {[%clk 0:03:00.4]}
5... h6 {[%clk 0:02:54.2]} 6. Bf4 {[%clk 0:03:00.6]} 6... Nf6 {[%clk 0:02:52.9]}
7. e3 {[%clk 0:03:00.7]} 7... Bd6 {[%clk 0:02:52.1]} 8. Be5 {[%clk 0:03:01.3]}
8... Be6 {[%clk 0:02:49.2]} 9. Bd3 {[%clk 0:03:01.2]} 9... O-O {[%clk
0:02:46.8]} 10. Qc2 {[%clk 0:02:56.5]} 10... Nc6 {[%clk 0:02:44.8]} 11. a3
{[%clk 0:02:46.7]} 11... Bxe5 {[%clk 0:02:38.3]} 12. Nxe5 {[%clk 0:02:44.8]}
12... Nxe5 {[%clk 0:02:38.5]} 13. dxe5 {[%clk 0:02:45.7]} 13... Ng4 {[%clk
0:02:33.7]} 14. O-O-O {[%clk 0:01:47.2]} 14... Nxe5 {[%clk 0:02:32.9]} 15. Bh7+
{[%clk 0:01:47.2]} 15... Kh8 {[%clk 0:02:33]} 16. f4 {[%clk 0:01:47.4]} 16...
Nc4 {[%clk 0:02:28.3]} 17. Rhe1 {[%clk 0:01:15.1]} 17... c6 {[%clk 0:02:10.7]}
18. Bd3 {[%clk 0:01:09.8]} 18... b5 {[%clk 0:02:05.2]} 19. f5 {[%clk 0:00:49.7]}
19... Bd7 {[%clk 0:02:00.4]} 20. Bxc4 {[%clk 0:00:48.2]} 20... bxc4 {[%clk
0:02:00.1]} 21. e4 {[%clk 0:00:47.6]} 21... Qg5+ {[%clk 0:01:59.5]} 22. Kb1
{[%clk 0:00:44]} 22... Rfe8 {[%clk 0:01:57.5]} 23. Qf2 {[%clk 0:00:30.3]} 23...
Rad8 {[%clk 0:01:47.5]} 24. h4 {[%clk 0:00:30.7]} 24... Qg4 {[%clk 0:01:43.3]}
25. Ka1 {[%clk 0:00:24]} 25... dxe4 {[%clk 0:01:32.1]} 26. f6 {[%clk 0:00:24.7]}
26... Bf5 {[%clk 0:01:28.7]} 27. fxg7+ {[%clk 0:00:23.3]} 27... Kxg7 {[%clk
0:01:29.1]} 28. Rxd8 {[%clk 0:00:19.8]} 28... Rxd8 {[%clk 0:01:30]} 29. Qc5
{[%clk 0:00:20]} 29... Qg6 {[%clk 0:01:22.7]} 30. Rf1 {[%clk 0:00:19.7]} 30...
Be6 {[%clk 0:01:16]} 31. Qe5+ {[%clk 0:00:20.3]} 31... Kg8 {[%clk 0:01:15.1]}
32. Nxe4 {[%clk 0:00:20.6]} 32... c3 {[%clk 0:01:03.8]} 33. Nf6+ {[%clk
0:00:19.5]} 33... Kf8 {[%clk 0:01:03.7]} 34. Qxc3 {[%clk 0:00:20.1]} 34... Qxg2
{[%clk 0:00:59.2]} 35. Qc5+ {[%clk 0:00:18]} 35... Kg7 {[%clk 0:00:54.2]} 36.
Rg1 {[%clk 0:00:18.5]} 36... Rd1+ {[%clk 0:00:54.2]} 37. Rxd1 {[%clk 0:00:18.8]}
37... Kxf6 {[%clk 0:00:54.9]} 38. Qd4+ {[%clk 0:00:17]} 38... Kf5 {[%clk
0:00:49.3]} 39. Qd3+ {[%clk 0:00:17.3]} 39... Qe4 {[%clk 0:00:45.3]} 40. Qxa6
{[%clk 0:00:11.8]} 40... Bd5 {[%clk 0:00:34.4]} 41. Qd3 {[%clk 0:00:11.5]} 41...
Ke5 {[%clk 0:00:27.3]} 42. Qxe4+ {[%clk 0:00:11.2]} 42... Kxe4 {[%clk
0:00:27.7]} 43. b4 {[%clk 0:00:11.3]} 43... f5 {[%clk 0:00:27.5]} 44. a4 {[%clk
0:00:10.6]} 44... f4 {[%clk 0:00:22.9]} 45. Kb2 {[%clk 0:00:10.7]} 45... f3
{[%clk 0:00:21.7]} 46. Kc3 {[%clk 0:00:05.3]} 46... Ke3 {[%clk 0:00:20.6]} 47.
a5 {[%clk 0:00:05.2]} 47... Ke2 {[%clk 0:00:17.9]} 48. Rd2+ {[%clk 0:00:05.5]}
48... Ke1 {[%clk 0:00:16.1]} 49. a6 {[%clk 0:00:03.9]} 49... f2 {[%clk
0:00:12.3]} 50. Rxf2 {[%clk 0:00:03.5]} 50... Kxf2 {[%clk 0:00:12.3]} 51. Kd4
{[%clk 0:00:03.3]} 51... Bf3 {[%clk 0:00:02.8]} 52. Kc5 {[%clk 0:00:03]} 52...
Kg3 {[%clk 0:00:03]} 53. a7 {[%clk 0:00:03.5]} 53... Kxh4 {[%clk 0:00:03.2]} 54.
a8=Q {[%clk 0:00:04.2]} 54... h5 {[%clk 0:00:03.9]} 55. Qd8+ {[%clk 0:00:04.5]}
55... Kg3 {[%clk 0:00:04.7]} 56. Qd6+ {[%clk 0:00:04.6]} 56... Kg4 {[%clk
0:00:04.2]} 57. Kd4 {[%clk 0:00:04.8]} 57... h4 {[%clk 0:00:05.1]} 58. Ke3
{[%clk 0:00:05.4]} 58... h3 {[%clk 0:00:05.1]} 59. Qf4+ {[%clk 0:00:05.9]} 59...
Kh5 {[%clk 0:00:05.2]} 60. Kxf3 {[%clk 0:00:05.7]} 60... h2 {[%clk 0:00:05.4]}
61. Qxh2+ {[%clk 0:00:05.8]} 61... Kg5 {[%clk 0:00:05.9]} 62. Qf4+ {[%clk
0:00:06.7]} 62... Kh5 {[%clk 0:00:05.7]} 63. Qg3 {[%clk 0:00:07]} 63... c5
{[%clk 0:00:05.9]} 64. Kf4 {[%clk 0:00:07.9]} 64... cxb4 {[%clk 0:00:05.7]} 65.
Qg5# {[%clk 0:00:07.9]} 1-0

[Event "Late-Titled-Tuesday-Blitz-April-30-2024"]
[Site "Chess.com"]
[Date "2024.04.30"]
[Round "2"]
[White "arenal72"]
[Black "Sanan_Sjugirov"]
[Result "0-1"]
[WhiteElo "2623"]
[BlackElo "3008"]
[TimeControl "180+1"]
[EndTime "14:19:26 PDT"]
[Termination "Sanan_Sjugirov won by resignation"]

1. Nf3 {[%clk 0:03:00.9]} 1... Nf6 {[%clk 0:02:59.6]} 2. g3 {[%clk 0:03:00.6]}
2... d5 {[%clk 0:02:59.7]} 3. Bg2 {[%clk 0:03:01]} 3... c6 {[%clk 0:03:00.5]} 4.
O-O {[%clk 0:03:01.1]} 4... Bg4 {[%clk 0:03:01.2]} 5. h3 {[%clk 0:02:57.4]} 5...
Bh5 {[%clk 0:03:00.9]} 6. d3 {[%clk 0:02:56.6]} 6... e6 {[%clk 0:02:59.9]} 7. c4
{[%clk 0:02:56.3]} 7... dxc4 {[%clk 0:02:57]} 8. dxc4 {[%clk 0:02:56.4]} 8...
Nbd7 {[%clk 0:02:57.4]} 9. Nc3 {[%clk 0:02:50.4]} 9... Be7 {[%clk 0:02:55.9]}
10. Nh4 {[%clk 0:02:45.5]} 10... Qc7 {[%clk 0:02:54.2]} 11. Qc2 {[%clk
0:02:43.9]} 11... O-O {[%clk 0:02:50.6]} 12. Be3 {[%clk 0:02:43]} 12... Bc5
{[%clk 0:02:45.3]} 13. Bxc5 {[%clk 0:02:41.2]} 13... Nxc5 {[%clk 0:02:46.2]} 14.
b4 {[%clk 0:02:40.7]} 14... Ncd7 {[%clk 0:02:46.3]} 15. Rfd1 {[%clk 0:02:36.9]}
15... a5 {[%clk 0:02:45.6]} 16. a3 {[%clk 0:02:36.2]} 16... Rfd8 {[%clk
0:02:45]} 17. g4 {[%clk 0:02:25.9]} 17... Bg6 {[%clk 0:02:44.8]} 18. Nxg6 {[%clk
0:02:26.2]} 18... hxg6 {[%clk 0:02:45.7]} 19. e3 {[%clk 0:02:21.2]} 19... axb4
{[%clk 0:02:42.2]} 20. axb4 {[%clk 0:02:22.1]} 20... Rxa1 {[%clk 0:02:42.4]} 21.
Rxa1 {[%clk 0:02:21.7]} 21... Ne5 {[%clk 0:02:43.1]} 22. Ne2 {[%clk 0:02:16.3]}
22... g5 {[%clk 0:02:28.2]} 23. Nd4 {[%clk 0:02:04.8]} 23... Qb6 {[%clk
0:02:20.7]} 24. Qc3 {[%clk 0:01:55.8]} 24... Qc7 {[%clk 0:02:18.8]} 25. Qc2
{[%clk 0:01:45.1]} 25... Qe7 {[%clk 0:01:50.9]} 26. Qc3 {[%clk 0:01:40.4]} 26...
Ng6 {[%clk 0:01:49.9]} 27. Ra7 {[%clk 0:01:25.5]} 27... Rd7 {[%clk 0:01:49.4]}
28. Qc2 {[%clk 0:00:44]} 28... Nh4 {[%clk 0:01:09.7]} 29. Ra8+ {[%clk
0:00:38.7]} 29... Rd8 {[%clk 0:01:09.6]} 30. Rxd8+ {[%clk 0:00:37.8]} 30... Qxd8
{[%clk 0:01:10.5]} 31. b5 {[%clk 0:00:37.3]} 31... c5 {[%clk 0:01:04.6]} 32. Nf3
{[%clk 0:00:36.8]} 32... Nxf3+ {[%clk 0:01:03.9]} 33. Bxf3 {[%clk 0:00:36.5]}
33... b6 {[%clk 0:01:04.6]} 34. Qd1 {[%clk 0:00:33.9]} 34... Qxd1+ {[%clk
0:01:02]} 35. Bxd1 {[%clk 0:00:34.8]} 35... Ne4 {[%clk 0:01:01.8]} 36. Kg2
{[%clk 0:00:31.7]} 36... Kf8 {[%clk 0:01:00.6]} 37. Bc2 {[%clk 0:00:30.8]} 37...
Nd6 {[%clk 0:00:45.8]} 38. Bd3 {[%clk 0:00:30.7]} 38... Ke7 {[%clk 0:00:30.9]}
39. f4 {[%clk 0:00:26.4]} 39... Kf6 {[%clk 0:00:31.2]} 40. Kf3 {[%clk
0:00:25.8]} 40... e5 {[%clk 0:00:30.7]} 41. fxg5+ {[%clk 0:00:14.9]} 41... Kxg5
{[%clk 0:00:30.8]} 42. Kg3 {[%clk 0:00:15.4]} 42... e4 {[%clk 0:00:28.7]} 43.
h4+ {[%clk 0:00:15.6]} 43... Kf6 {[%clk 0:00:29.2]} 44. Be2 {[%clk 0:00:15.7]}
44... Ke5 {[%clk 0:00:29.8]} 45. Kf2 {[%clk 0:00:12.5]} 45... f5 {[%clk
0:00:25.6]} 46. g5 {[%clk 0:00:09.9]} 46... f4 {[%clk 0:00:25.8]} 47. exf4+
{[%clk 0:00:09.7]} 47... Kxf4 {[%clk 0:00:26]} 48. g6 {[%clk 0:00:08.6]} 48...
Nf5 {[%clk 0:00:24.5]} 49. h5 {[%clk 0:00:07.7]} 49... Kg5 {[%clk 0:00:23]} 50.
Bd1 {[%clk 0:00:06.7]} 50... Kf4 {[%clk 0:00:20.6]} 51. Be2 {[%clk 0:00:06.1]}
51... e3+ {[%clk 0:00:17.1]} 52. Ke1 {[%clk 0:00:05.9]} 52... Kg5 {[%clk
0:00:16.4]} 53. Bf3 {[%clk 0:00:05.5]} 53... Nd4 {[%clk 0:00:16.4]} 54. Bd1
{[%clk 0:00:05.3]} 54... e2 {[%clk 0:00:16.1]} 55. Bxe2 {[%clk 0:00:05.2]} 55...
Nxe2 {[%clk 0:00:17]} 56. Kxe2 {[%clk 0:00:05.5]} 56... Kxh5 {[%clk 0:00:17.4]}
57. Ke3 {[%clk 0:00:05.8]} 57... Kxg6 {[%clk 0:00:18]} 58. Ke4 {[%clk
0:00:06.7]} 58... Kf6 {[%clk 0:00:18]} 59. Kd5 {[%clk 0:00:07.6]} 59... g5
{[%clk 0:00:18.4]} 60. Kc6 {[%clk 0:00:08.5]} 60... g4 {[%clk 0:00:18.9]} 61.
Kxb6 {[%clk 0:00:09.4]} 61... g3 {[%clk 0:00:19.5]} 62. Ka7 {[%clk 0:00:09]}
62... g2 {[%clk 0:00:19.8]} 63. b6 {[%clk 0:00:09.9]} 63... g1=Q {[%clk
0:00:20.1]} 64. b7 {[%clk 0:00:10.4]} 64... Qa1+ {[%clk 0:00:19.6]} 65. Kb6
{[%clk 0:00:11]} 65... Qb2+ {[%clk 0:00:19.2]} 66. Kc7 {[%clk 0:00:11.2]} 66...
Qe5+ {[%clk 0:00:18.3]} 67. Kc8 {[%clk 0:00:11.4]} 67... Qe6+ {[%clk 0:00:17.6]}
68. Kc7 {[%clk 0:00:11.6]} 68... Qxc4 {[%clk 0:00:17.5]} 69. b8=Q {[%clk
0:00:08.5]} 69... Qf4+ {[%clk 0:00:18]} 70. Kc8 {[%clk 0:00:09]} 70... Qxb8+
{[%clk 0:00:18.4]} 71. Kxb8 {[%clk 0:00:09.9]} 71... c4 {[%clk 0:00:18.9]} 0-1